bitfinex/quotes_ETHUSD_20251024
["timestamp","ask_amount","ask_price","bid_price","bid_amount"]
[1761312295895,12.84788727,3975.2,3975.1,0.002]
[1761312296801,13.48220545,3975.2,3975.1,0.002]
[1761312299295,13.04560545,3975.2,3975.1,0.002]
[1761312300406,2.51597645,3974.6,3974.5,0.002]
[1761312300595,11.58827596,3974.6,3974.5,0.002]
[1761312300795,6.23985645,3974.6,3974.5,0.002]
[1761312301298,6.70295645,3974.6,3974.5,0.002]
[1761312302112,8.25815645,3974.6,3974.5,0.002]
[1761312302412,10.03522769,3974.6,3974.5,0.002]
[1761312302786,10.64652769,3974.6,3974.5,0.002]
[1761312303408,7.55512769,3974.6,3974.5,0.002]
[1761312303728,7.55512769,3974.6,3973.1,0.002]
[1761312303729,10.90515124,3974.6,3973.1,0.002]
[1761312303893,6.54238249,3973.2,3973.1,0.002]
[1761312304094,4.57913303,3972.9,3972.8,0.002]
[1761312304292,7.79613303,3972.9,3972.8,0.002]
[1761312304486,8.25923303,3972.9,3972.8,0.002]
[1761312304683,10.15940023,3972.9,3972.8,0.002]
[1761312305191,2.06208,3972.5,3972.3,0.002]
[1761312305416,11.58966936,3972.4,3972.3,0.002]
[1761312305618,11.58966936,3972.4,3971.9,0.002]
[1761312305619,4.5795766,3972.2,3971.9,0.002]
[1761312305795,5.25399418,3972.2,3971.9,0.002]
[1761312305999,7.33180285,3972.2,3971.9,0.002]
[1761312306200,4.57970336,3972.0,3971.9,0.002]
[1761312306399,12.05402287,3972.0,3971.9,0.002]
[1761312306703,11.59092287,3972.0,3971.9,0.002]
[1761312307803,12.05402287,3972.0,3971.9,0.002]
[1761312308002,4.57976674,3971.9,3971.7,0.002]
[1761312308204,3.02475692,3971.6,3971.5,0.002]
[1761312308738,3.02501053,3971.2,3971.1,0.002]
[1761312308938,10.63684573,3971.2,3971.1,0.002]
[1761312309537,12.19204573,3971.2,3971.1,0.002]
[1761312310708,5.18082622,3971.2,3971.1,0.002]
[1761312310909,5.18082622,3971.2,3971.1,0.4574]
[1761312310910,3.72488,3971.2,3971.1,0.4574]
[1761312311110,6.24301053,3971.2,3971.1,0.4574]
[1761312312049,3.02501053,3971.2,3971.1,0.4574]
[1761312312342,6.24321053,3971.2,3971.1,0.4574]
[1761312313241,3.02421053,3971.2,3971.1,0.4574]
[1761312313445,6.24321053,3971.2,3971.1,0.4574]
[1761312313744,3.3446,3971.2,3971.1,0.4574]
[1761312314559,5.86273053,3971.2,3971.1,0.002]
[1761312314728,18.32888941,3971.2,3971.1,0.002]
[1761312317030,17.86578941,3971.2,3971.1,0.002]
[1761312317847,18.32888941,3971.2,3971.1,0.002]
[1761312318216,17.82200941,3971.2,3971.1,0.002]
[1761312318979,17.86578941,3971.2,3971.1,0.002]
[1761312320066,16.31058941,3971.2,3971.1,0.4574]
[1761312320230,6.95587209,3971.2,3971.1,0.6133]
[1761312320431,6.95587209,3971.2,3971.1,0.1579]
[1761312320830,6.36961053,3971.2,3971.1,0.1579]
[1761312321026,6.36961053,3971.2,3971.1,0.002]
[1761312321225,3.15061053,3971.2,3971.1,0.002]
[1761312321459,6.36961053,3971.2,3971.1,0.1579]
[1761312321665,6.36961053,3971.2,3971.1,0.002]
[1761312321872,7.41389314,3971.2,3971.1,0.002]
[1761312322168,7.88649314,3971.2,3971.1,0.002]
[1761312322944,7.41389314,3971.2,3971.1,0.002]
[1761312323783,8.96909314,3971.2,3971.1,0.002]
[1761312324869,8.97009314,3971.2,3971.1,0.002]
[1761312328444,8.97109314,3971.2,3971.1,0.002]
[1761312329288,9.5098801,3971.2,3971.1,0.002]
[1761312330774,6.2898801,3971.2,3971.1,0.002]
[1761312330979,9.5098801,3971.2,3971.1,0.002]
[1761312331990,6.2898801,3971.2,3971.1,0.002]
[1761312332154,9.5098801,3971.2,3971.1,0.002]
[1761312332681,10.09043657,3971.2,3971.1,0.002]
[1761312332855,13.31043657,3971.2,3971.1,0.002]
[1761312333058,4.58027395,3971.1,3971.0,0.002]
[1761312333300,3.02539105,3970.6,3969.8,0.45]
[1761312333500,3.02539105,3970.6,3968.5,2.51978797]
[1761312333501,4.58065448,3970.5,3969.4,0.45]
[1761312333668,4.58065448,3970.5,3968.8,0.10083478]
[1761312333669,0.50688,3969.9,3968.9,0.45]
[1761312333874,6.95249932,3969.1,3969.0,0.6059]
[1761312334267,7.65303647,3969.1,3969.0,0.6059]
[1761312334468,3.85248,3969.1,3969.0,0.6059]
[1761312335266,6.37194285,3969.1,3969.0,0.6059]
[1761312335767,6.37194285,3969.1,3969.0,0.1559]
[1761312335971,3.85248,3969.1,3969.0,0.6059]
[1761312336167,3.85168,3969.1,3969.0,0.6059]
[1761312338909,6.37114285,3969.1,3969.0,0.1559]
[1761312339210,6.37114285,3969.1,3969.0,0.6059]
[1761312339810,3.15114285,3969.1,3969.0,0.6059]
[1761312340012,6.37114285,3969.1,3969.0,0.6059]
[1761312340316,7.64024674,3969.1,3969.0,0.1559]
[1761312341083,7.64024674,3969.1,3969.0,0.6059]
[1761312341402,6.37114285,3969.1,3969.0,0.6059]
[1761312342218,3.85168,3969.1,3969.0,0.6059]
[1761312342577,0.50608,3969.1,3969.0,0.6079]
[1761312342782,0.1256,3969.1,3969.0,0.6079]
[1761312342981,0.1256,3969.1,3969.0,3.12742632]
[1761312342982,3.3466,3969.1,3969.0,3.12742632]
[1761312343411,0.1266,3969.1,3969.0,3.12742632]
[1761312344297,0.1266,3969.1,3969.0,0.6079]
[1761312345087,0.1266,3969.1,3969.0,3.12742632]
[1761312345509,0.1266,3969.1,3969.0,0.6079]
[1761312345816,0.1266,3969.1,3969.0,3.12742632]
[1761312347421,0.1266,3969.1,3969.0,0.6079]
[1761312348355,0.1266,3969.1,3969.0,3.12742632]
[1761312348559,0.1266,3969.1,3969.0,3.69465368]
[1761312349869,0.001,3969.1,3969.0,3.69465368]
[1761312351625,0.001,3969.1,3969.0,0.6079]
[1761312351820,0.001,3969.1,3969.0,3.12742632]
[1761312352458,0.001,3969.1,3969.0,0.6079]
[1761312353329,0.001,3969.1,3969.0,3.12742632]
[1761312355456,0.001,3969.1,3969.0,2.67742632]
[1761312355982,0.001,3969.1,3969.0,3.12572632]
[1761312358077,0.001,3969.1,3969.0,3.69026357]
[1761312358751,0.001,3969.1,3969.0,3.24196357]
[1761312359153,0.001,3969.1,3969.0,3.69746357]
[1761312359352,0.001,3969.1,3969.0,2.67742632]
[1761312359793,0.001,3969.1,3969.0,3.13292632]
[1761312360292,0.0002,3969.1,3969.0,3.13292632]
[1761312362075,0.0002,3969.1,3969.0,0.6134]
[1761312362281,6.6479626,3969.1,3969.0,0.002]
[1761312362496,7.57725282,3969.1,3969.0,0.002]
[1761312364723,7.12425282,3969.1,3969.0,0.002]
[1761312364884,10.34325282,3969.1,3969.0,0.002]
[1761312365083,7.82378997,3969.1,3969.0,0.002]
[1761312365319,1.43637022,3969.1,3969.0,0.002]
[1761312365521,0.50708,3969.1,3969.0,0.002]
[1761312366798,0.1258,3969.1,3969.0,0.002]
[1761312367147,0.1258,3969.1,3969.0,2.97702632]
[1761312367499,0.1258,3969.1,3969.0,2.52152632]
[1761312367819,0.1258,3969.1,3969.0,0.4575]
[1761312368023,0.1258,3969.1,3969.0,0.002]
[1761312369438,0.1258,3969.1,3969.0,2.52152632]
[1761312370029,0.1258,3969.1,3969.0,2.97702632]
[1761312371708,0.1258,3969.1,3969.0,3.07119328]
[1761312371907,0.0002,3969.1,3969.0,5.10708854]
[1761312372108,0.0002,3969.1,3969.0,5.08189328]
[1761312372418,0.0002,3969.1,3969.0,5.20769328]
[1761312374808,0.0002,3969.1,3969.0,6.11057564]
[1761312375209,0.0002,3969.1,3969.0,5.20769328]
[1761312376709,0.0002,3969.1,3969.0,3.65249328]
[1761312377541,0.0002,3969.1,3969.0,8.42669328]
[1761312378532,0.0002,3969.1,3969.0,6.41599328]
[1761312378738,0.0002,3969.1,3969.0,6.32082632]
[1761312379046,0.0002,3969.1,3969.0,2.52152632]
[1761312379252,0.0002,3969.1,3969.0,5.73952632]
[1761312379545,0.0002,3969.1,3969.0,2.52152632]
[1761312379746,0.0002,3969.1,3969.0,3.22]
[1761312380049,0.0002,3969.1,3969.0,5.73952632]
[1761312380248,0.0002,3969.1,3969.0,0.002]
[1761312380945,0.0002,3969.1,3969.0,3.22]
[1761312381144,0.0002,3969.1,3969.0,5.73952632]
[1761312381314,0.0002,3969.1,3969.0,2.52152632]
[1761312381645,0.0002,3969.1,3969.0,0.002]
[1761312381850,0.1258,3969.1,3969.0,0.002]
[1761312382662,0.1258,3969.1,3969.0,2.52152632]
[1761312384173,0.125,3969.1,3969.0,2.52152632]
[1761312384695,0.001,3969.5,3969.4,2.51927243]
[1761312384988,0.001,3969.5,3969.4,5.73727243]
[1761312385142,0.1266,3969.5,3969.4,5.73727243]
[1761312393374,0.001,3969.5,3969.4,6.17007243]
[1761312394483,0.001,3969.5,3969.4,5.73727243]
[1761312395475,0.001,3969.5,3969.4,6.17007243]
[1761312395670,0.001,3969.5,3969.4,7.06716863]
[1761312398071,0.001,3969.5,3969.4,6.63436863]
[1761312398774,0.4635,3969.5,3969.4,3.217]
[1761312398977,0.4635,3969.5,3969.2,3.217]
[1761312399179,0.4635,3969.5,3969.4,2.51927243]
[1761312399673,0.5891,3969.5,3969.4,2.51927243]
[1761312400249,0.1266,3969.5,3969.4,2.51927243]
[1761312402654,0.5891,3969.5,3969.4,2.51927243]
[1761312403479,0.1266,3969.5,3969.4,2.51927243]
[1761312404055,0.1266,3969.5,3969.4,3.3604291]
[1761312408299,0.1258,3969.5,3969.4,3.3604291]
[1761312411269,0.1258,3969.5,3969.4,6.5764291]
[1761312412201,0.18325794,3969.5,3969.4,6.5764291]
[1761312413806,0.18325794,3969.5,3969.4,3.3604291]
[1761312414020,0.62165794,3969.5,3969.4,5.73527243]
[1761312414375,0.18325794,3969.5,3969.4,5.73527243]
[1761312417190,0.18325794,3969.5,3969.4,2.51927243]
[1761312417401,0.18325794,3969.5,3969.4,5.73527243]
[1761312417784,0.65715794,3969.5,3969.4,5.73527243]
[1761312419888,0.18325794,3969.5,3969.4,5.73527243]
[1761312420619,0.18325794,3969.5,3969.4,3.216]
[1761312420815,0.65715794,3969.5,3969.1,0.002]
[1761312421017,0.1256,3969.2,3969.1,3.218]
[1761312421378,0.5995,3969.2,3969.1,3.218]
[1761312421578,0.5995,3969.2,3969.1,0.002]
[1761312422005,0.5995,3969.2,3969.1,2.52146285]
[1761312422491,0.1256,3969.2,3969.1,2.52146285]
[1761312423784,0.5995,3969.2,3969.1,2.52146285]
[1761312424689,0.5995,3969.2,3969.1,0.002]
[1761312424916,1.10638,3969.2,3969.1,0.002]
[1761312425118,1.85484585,3969.2,3969.1,0.002]
[1761312430425,1.10638,3969.2,3969.1,0.002]
[1761312432236,1.10558,3969.2,3969.1,0.002]
[1761312433838,2.66078,3969.2,3969.1,0.002]
[1761312434042,1.10558,3969.2,3969.1,0.002]
[1761312434427,3.62497937,3969.2,3969.1,0.002]
[1761312435215,6.65177219,3969.2,3969.1,0.002]
[1761312435635,4.13237282,3969.2,3969.1,0.002]
[1761312436256,2.66078,3969.2,3969.1,0.002]
[1761312437257,0.63168,3969.2,3969.1,0.002]
[1761312437457,0.1248,3969.2,3969.1,2.52146285]
[1761312437669,0.1248,3969.2,3969.1,0.002]
[1761312437822,0.5987,3969.2,3969.1,0.002]
[1761312441648,1.10558,3969.2,3969.1,0.002]
[1761312442038,3.62497937,3969.2,3969.1,0.002]
[1761312442245,4.84464354,3969.2,3969.1,0.002]
[1761312442669,2.32524417,3969.2,3969.1,0.002]
[1761312442865,1.10558,3969.2,3969.1,0.002]
[1761312443450,4.31958,3969.2,3969.1,0.002]
[1761312444775,6.83897937,3969.2,3969.1,0.002]
[1761312447584,6.83997937,3969.2,3969.1,0.002]
[1761312448953,6.89743731,3969.2,3969.1,0.002]
[1761312449165,8.37477471,3969.2,3969.1,0.002]
[1761312455289,9.92997471,3969.2,3969.1,0.002]
[1761312456159,9.92917471,3969.2,3969.1,0.002]
[1761312457383,10.6065351,3969.2,3969.1,0.002]
[1761312458098,9.92917471,3969.2,3969.1,0.002]
[1761312458264,10.60655098,3969.2,3969.1,0.002]
[1761312459215,10.13265098,3969.2,3969.1,0.002]
[1761312459498,9.92377471,3969.2,3969.1,0.002]
[1761312459802,6.71077471,3969.2,3969.1,0.002]
[1761312460100,9.92377471,3969.2,3969.1,0.002]
[1761312460301,9.45427471,3969.2,3969.1,0.002]
[1761312460909,5.45753794,3969.2,3969.1,0.002]
[1761312461471,6.42173731,3969.2,3969.1,0.002]
[1761312461670,3.90233794,3969.2,3969.1,0.002]
[1761312462284,6.42173731,3969.2,3969.1,0.002]
[1761312462499,3.90233794,3969.2,3969.1,0.002]
[1761312463298,3.20873731,3969.2,3969.1,0.002]
[1761312463604,3.90233794,3969.2,3969.1,0.002]
[1761312463767,6.42173731,3969.2,3969.1,0.002]
[1761312463972,8.82821678,3969.2,3969.1,0.002]
[1761312464480,9.50559305,3969.2,3969.1,0.002]
[1761312464813,8.82821678,3969.2,3969.1,0.002]
[1761312465519,5.61521678,3969.2,3969.1,0.002]
[1761312465695,8.82721678,3969.2,3969.1,0.002]
[1761312468388,4.63993731,3969.2,3969.1,0.002]
[1761312468722,7.85193731,3969.2,3969.1,0.002]
[1761312468925,1.61365794,3969.2,3969.1,0.002]
[1761312469090,4.82565794,3969.2,3969.1,0.002]
[1761312469285,7.34505731,3969.2,3969.1,0.002]
[1761312469489,7.85193731,3969.2,3969.1,0.002]
[1761312470189,5.33253794,3969.2,3969.1,0.002]
[1761312471405,2.12053794,3969.2,3969.1,0.002]
[1761312471602,2.12053794,3969.2,3969.1,0.1579]
[1761312472808,2.12053794,3969.2,3969.1,0.002]
[1761312473432,1.61365794,3969.2,3969.1,0.002]
[1761312473630,1.61365794,3969.2,3969.1,0.6255]
[1761312473824,1.61365794,3969.2,3969.1,0.1579]
[1761312474131,1.73925794,3969.2,3969.1,0.1579]
[1761312474439,0.18405794,3969.2,3969.1,0.1579]
[1761312474739,0.18405794,3969.2,3969.1,2.99206508]
[1761312475730,0.18405794,3969.2,3969.1,3.45966508]
[1761312476816,0.18405794,3969.2,3969.1,0.47260223]
[1761312477025,0.18405794,3969.2,3969.1,0.1579]
[1761312477499,0.18405794,3969.2,3969.1,3.12096285]
[1761312480358,0.18405794,3969.2,3969.1,0.002]
[1761312480359,2.70265731,3969.2,3969.1,0.002]
[1761312480654,5.19453731,3969.2,3969.1,0.002]
[1761312480854,2.04161833,3969.2,3969.1,0.002]
[1761312481020,5.45633794,3969.2,3969.1,0.002]
[1761312481217,7.97573731,3969.2,3969.1,0.002]
[1761312481849,8.40553731,3969.2,3969.1,0.002]
[1761312482257,5.19453731,3969.2,3969.1,0.002]
[1761312482553,7.97573731,3969.2,3969.1,0.002]
[1761312482854,8.40553731,3969.2,3969.1,0.002]
[1761312483051,8.27993731,3969.2,3969.1,0.002]
[1761312483253,7.85013731,3969.2,3969.1,0.002]
[1761312483758,0.05765794,3969.2,3969.1,0.002]
[1761312484650,0.05765794,3969.2,3969.1,3.76950132]
[1761312484955,0.05765794,3969.2,3969.1,0.97865013]
[1761312485256,0.05765794,3969.2,3969.1,3.59894573]
[1761312485460,0.05765794,3969.2,3969.1,6.76694705]
[1761312486181,0.05765794,3969.2,3969.1,3.59894573]
[1761312487052,0.05765794,3969.2,3969.1,6.80894573]
[1761312488899,0.05765794,3969.2,3969.1,6.76694705]
[1761312489046,0.05765794,3969.2,3969.1,9.97694705]
[1761312489253,0.05765794,3969.2,3969.1,3.84588288]
[1761312489472,0.05765794,3969.2,3969.1,3.31283275]
[1761312489885,0.05765794,3969.2,3969.1,0.002]
[1761312489886,2.57705731,3969.2,3969.1,0.002]
[1761312490060,3.51373731,3969.2,3969.1,0.002]
[1761312491681,3.08393731,3969.2,3969.1,0.002]
[1761312491982,0.56453794,3969.2,3969.1,0.002]
[1761312492189,3.08393731,3969.2,3969.1,0.002]
[1761312493296,0.05765794,3969.2,3969.1,0.002]
[1761312493501,0.18325794,3969.2,3969.1,0.002]
[1761312497611,3.13245731,3969.2,3969.1,0.002]
[1761312498204,4.25521951,3969.2,3969.1,0.002]
[1761312500081,3.82541951,3969.2,3969.1,0.002]
[1761312500290,3.20953731,3969.2,3969.1,0.002]
[1761312500469,0.69013794,3969.2,3969.1,0.002]
[1761312502002,3.20953731,3969.2,3969.1,0.002]
[1761312502210,5.22543731,3969.2,3969.1,0.002]
[1761312504170,5.22463731,3969.2,3969.1,0.002]
[1761312504368,6.319955,3969.2,3969.1,0.002]
[1761312505707,5.859255,3969.2,3969.1,0.002]
[1761312507407,6.194355,3969.2,3969.1,0.002]
[1761312507612,9.36235632,3969.2,3969.1,0.002]
[1761312507773,10.04012005,3969.2,3969.1,0.002]
[1761312507980,12.57135632,3969.2,3969.1,0.002]
[1761312515521,12.57235632,3969.2,3969.1,0.002]
[1761312516814,4.58154285,3969.1,3969.0,1e-08]
[1761312517120,3.02678726,3968.4,3968.3,0.002]
[1761312517321,11.54448858,3968.4,3968.3,0.002]
[1761312519114,8.33648858,3968.4,3968.3,0.002]
[1761312519320,11.54448858,3968.4,3968.3,0.002]
[1761312519618,13.05546654,3968.4,3968.3,0.002]
[1761312521452,6.21856522,3968.4,3968.3,0.002]
[1761312521641,12.59456654,3968.4,3968.3,0.002]
[1761312521840,13.05546654,3968.4,3968.3,0.002]
[1761312523031,9.84746654,3968.4,3968.3,0.002]
[1761312523233,13.05546654,3968.4,3968.3,0.002]
[1761312524940,9.25498522,3968.4,3968.3,0.002]
[1761312525139,7.74400726,3968.4,3968.3,0.002]
[1761312525540,4.53600726,3968.4,3968.3,0.002]
[1761312525739,8.25088726,3968.4,3968.3,0.002]
[1761312525944,5.04288726,3968.4,3968.3,0.002]
[1761312526257,8.25088726,3968.4,3968.3,0.002]
[1761312526421,9.66628701,3968.4,3968.3,0.002]
[1761312528163,9.66548701,3968.4,3968.3,0.002]
[1761312530068,2.06128,3968.4,3968.3,0.002]
[1761312530368,0.2153,3968.7,3968.3,0.4465]
[1761312530369,3.208,3968.6,3968.3,0.4465]
[1761312530531,0.50688,3968.5,3968.3,0.4465]
[1761312531230,0.50688,3968.5,3968.3,0.002]
[1761312531662,0.50688,3968.4,3968.3,0.002]
[1761312531960,3.02678726,3968.4,3968.3,0.002]
[1761312534280,4.38403409,3968.4,3968.3,0.002]
[1761312534650,3.94843409,3968.4,3968.3,0.002]
[1761312534956,0.63248,3968.4,3968.3,0.002]
[1761312536859,3.15238726,3968.4,3968.3,0.002]
[1761312537471,0.63248,3968.4,3968.3,0.002]
[1761312537877,0.1256,3968.4,3968.3,0.002]
[1761312538153,0.1256,3968.4,3968.3,2.95277076]
[1761312538475,0.1256,3968.4,3968.3,3.83264262]
[1761312539483,0.001,3968.6,3968.3,3.83264262]
[1761312539484,0.001,3968.6,3968.5,2.51984376]
[1761312539690,0.001,3968.6,3968.5,6.75356082]
[1761312539981,0.001,3968.6,3968.5,8.61077671]
[1761312540191,0.001,3968.6,3968.5,8.30876082]
[1761312540393,0.001,3968.6,3968.5,9.49258116]
[1761312541089,0.001,3968.6,3968.5,12.69958116]
[1761312541882,0.001,3968.6,3968.5,5.6896641]
[1761312542080,0.001,3968.6,3968.5,6.15764376]
[1761312542257,0.001,3968.6,3968.5,5.72684376]
[1761312542458,0.001,3968.6,3968.5,2.95064376]
[1761312542679,0.001,3968.6,3968.5,2.97584219]
[1761312543493,0.001,3968.6,3968.5,2.95064376]
[1761312544110,0.001,3968.6,3968.5,3.81880509]
[1761312544727,0.001,3968.6,3968.5,0.4308]
[1761312544910,0.001,3968.6,3968.4,5.72684768]
[1761312544911,0.001,3968.6,3968.4,3.207]
[1761312545108,0.001,3968.6,3968.4,6.15767763]
[1761312545407,0.001,3968.6,3968.5,2.95064376]
[1761312546288,0.001,3968.6,3968.3,0.002]
[1761312546522,0.001,3968.6,3968.5,2.51984376]
[1761312546720,0.001,3968.6,3968.4,3.206]
[1761312547087,0.001,3968.6,3968.5,2.51984376]
[1761312547878,0.001,3968.6,3968.5,2.95064376]
[1761312549814,0.1266,3968.6,3968.5,2.95064376]
[1761312550017,0.1266,3968.6,3968.5,3.81870519]
[1761312552204,0.1258,3968.6,3968.5,3.81870519]
[1761312552890,0.1258,3968.6,3968.5,3.38790519]
[1761312553216,0.1258,3968.6,3968.5,2.51984376]
[1761312554424,0.1258,3968.6,3968.5,5.72584376]
[1761312556436,0.50708,3968.6,3968.4,0.002]
[1761312556638,3.02672376,3968.5,3968.4,0.002]
[1761312556794,3.75302784,3968.5,3968.4,0.002]
[1761312557001,4.18622784,3968.5,3968.4,0.002]
[1761312559305,3.67934784,3968.5,3968.4,0.002]
[1761312560298,4.18622784,3968.5,3968.4,0.002]
[1761312560712,5.74142784,3968.5,3968.4,0.002]
[1761312562051,8.94642784,3968.5,3968.4,0.002]
[1761312566243,5.74142784,3968.5,3968.4,0.002]
[1761312566444,9.07202784,3968.5,3968.4,0.002]
[1761312567913,6.55218408,3968.5,3968.4,0.002]
[1761312568235,9.07202784,3968.5,3968.4,0.002]
[1761312568434,2.18768,3968.5,3968.4,0.002]
[1761312568602,5.39268,3968.5,3968.4,0.002]
[1761312569033,1.6808,3968.5,3968.4,0.002]
[1761312569211,0.1256,3968.5,3968.4,0.002]
[1761312570352,0.63248,3968.5,3968.4,0.002]
[1761312570522,3.58382376,3968.5,3968.4,0.002]
[1761312570718,4.514698,3968.5,3968.4,0.002]
[1761312571943,4.083198,3968.5,3968.4,0.002]
[1761312572314,4.514698,3968.5,3968.4,0.002]
[1761312574243,4.083198,3968.5,3968.4,0.002]
[1761312574425,4.514698,3968.5,3968.4,0.002]
[1761312574624,9.87281506,3968.5,3968.4,0.002]
[1761312575431,13.07781506,3968.5,3968.4,0.002]
[1761312576025,9.87281506,3968.5,3968.4,0.002]
[1761312576246,13.07701506,3968.5,3968.4,0.002]
[1761312577927,9.87201506,3968.5,3968.4,0.002]
[1761312578121,13.07701506,3968.5,3968.4,0.002]
[1761312578842,9.274098,3968.5,3968.4,0.002]
[1761312579045,7.40564376,3968.5,3968.4,0.002]
[1761312579246,8.34402376,3968.5,3968.4,0.002]
[1761312579550,7.83714376,3968.5,3968.4,0.002]
[1761312579748,8.34402376,3968.5,3968.4,0.002]
[1761312581458,12.14694082,3968.5,3968.4,0.002]
[1761312581764,13.61362677,3968.5,3968.4,0.002]
[1761312586059,13.61462677,3968.5,3968.4,0.002]
[1761312587459,10.40962677,3968.5,3968.4,0.002]
[1761312587763,13.61362677,3968.5,3968.4,0.002]
[1761312591151,10.40962677,3968.5,3968.4,0.002]
[1761312591351,13.61362677,3968.5,3968.4,0.002]
[1761312593279,10.40962677,3968.5,3968.4,0.002]
[1761312593483,13.61362677,3968.5,3968.4,0.002]
[1761312593776,10.40962677,3968.5,3968.4,0.002]
[1761312593973,13.61362677,3968.5,3968.4,0.002]
[1761312595278,13.18212677,3968.5,3968.4,0.002]
[1761312595453,9.37920971,3968.5,3968.4,0.002]
[1761312595964,13.62152677,3968.5,3968.4,0.002]
[1761312598758,12.99011273,3968.5,3968.4,0.002]
[1761312599996,12.55071273,3968.5,3968.4,0.002]
[1761312600196,12.98661273,3968.5,3968.4,0.002]
[1761312600360,6.19848079,3968.1,3968.0,0.002]
[1761312600561,2.52047889,3967.5,3965.8,0.4676]
[1761312600794,3.02824859,3966.1,3965.4,0.4676]
[1761312600966,0.50688,3965.4,3965.0,0.25682739]
[1761312601167,0.2286,3967.3,3965.1,3.66432306]
[1761312601365,0.50688,3966.1,3965.2,0.38202231]
[1761312601591,0.50688,3965.8,3965.2,0.4676]
[1761312601778,0.50688,3965.8,3965.2,2.98953013]
[1761312601978,0.50688,3965.8,3965.2,2.98952195]
[1761312602178,0.337,3966.1,3965.3,0.4676]
[1761312602378,0.50688,3966.0,3965.3,0.4676]
[1761312602679,0.50688,3966.0,3965.0,0.1559]
[1761312602680,0.50688,3965.5,3965.0,0.1559]
[1761312602996,0.50688,3965.0,3964.6,0.4676]
[1761312603171,0.50688,3965.0,3963.6,3.17150302]
[1761312603172,0.50688,3965.4,3965.1,0.1559]
[1761312603372,3.02869969,3965.4,3965.1,0.1559]
[1761312603687,0.50688,3965.4,3965.1,0.1559]
[1761312604186,0.50688,3965.2,3965.1,0.1559]
[1761312604765,0.50688,3965.2,3964.6,0.4676]
[1761312604962,0.50688,3965.2,3964.7,0.4676]
[1761312605171,0.50688,3965.3,3965.1,0.1559]
[1761312605369,0.50688,3965.3,3965.2,0.4676]
[1761312605769,0.50688,3965.5,3965.2,2.98954088]
[1761312606083,3.17150302,3967.0,3965.4,3.17150302]
[1761312606283,3.17150302,3967.6,3966.0,3.17150302]
[1761312606496,7.13239356,3967.7,3967.2,0.1559]
[1761312606693,8.89590408,3967.7,3967.2,0.1559]
[1761312606910,6.37550302,3967.7,3967.2,0.1559]
[1761312607123,3.17150302,3968.4,3967.2,0.1559]
[1761312607124,0.001,3968.5,3967.5,2.52042557]
[1761312607298,0.001,3968.5,3967.3,3.01340304]
[1761312607299,0.001,3968.5,3967.6,0.55338286]
[1761312607613,3.17150302,3967.8,3966.0,0.1559]
[1761312607775,5.69159972,3968.2,3966.2,0.4676]
[1761312607776,0.50688,3967.3,3966.2,0.4676]
[1761312607960,3.71088,3967.3,3966.2,0.4676]
[1761312608165,3.71088,3967.3,3966.7,2.52097141]
[1761312608359,0.50688,3967.6,3967.2,0.1559]
[1761312608560,3.71088,3967.3,3967.2,0.1559]
[1761312608765,3.71088,3967.3,3966.4,0.4676]
[1761312608766,0.50688,3967.2,3966.4,0.4676]
[1761312609223,0.50688,3967.2,3966.4,2.98876647]
[1761312609365,0.50688,3967.2,3966.5,2.52110248]
[1761312609562,0.50688,3967.3,3966.6,2.52105055]
[1761312610168,0.001,3969.3,3967.2,0.1559]
[1761312610432,0.592,3968.4,3967.3,0.02520605]
[1761312610578,3.54781123,3968.4,3966.9,2.52084259]
[1761312610920,0.50688,3968.2,3967.1,0.1559]
[1761312611070,0.50688,3967.6,3967.1,0.1559]
[1761312611269,2.52036386,3967.7,3967.1,0.1559]
[1761312611270,0.50688,3967.7,3967.1,0.1559]
[1761312611478,3.02723791,3967.7,3967.1,0.1559]
[1761312611818,3.92528552,3967.7,3966.0,0.1559]
[1761312612117,1.40488082,3967.7,3966.5,0.4676]
[1761312612324,2.06208,3967.5,3966.1,0.75679698]
[1761312612603,0.50688,3966.1,3965.4,2.52178853]
[1761312612807,0.50688,3966.4,3965.6,2.52166784]
[1761312613007,0.50688,3966.4,3966.0,2.52142317]
[1761312613208,0.50688,3966.4,3966.3,0.1559]
[1761312613613,0.50688,3966.5,3966.3,0.1559]
[1761312613920,0.50688,3966.5,3965.1,0.91292232]
[1761312613921,0.50688,3966.5,3965.7,2.52158405]
[1761312614077,0.50688,3966.5,3965.5,0.4676]
[1761312614283,0.50688,3966.5,3965.9,2.52147145]
[1761312614477,0.50688,3966.5,3966.0,2.52142581]
[1761312614813,0.50688,3966.5,3965.7,2.52156611]
[1761312615327,3.0280366,3966.5,3965.5,2.5216906]
[1761312615529,0.2286,3965.6,3965.1,0.75702232]
[1761312615731,2.06208,3965.1,3964.0,0.6235]
[1761312616034,2.52219871,3964.8,3964.0,0.75702232]
[1761312616242,2.52219871,3964.8,3963.4,0.4676]
[1761312616243,0.50688,3964.8,3963.4,0.4676]
[1761312616393,0.50688,3964.8,3963.0,0.1559]
[1761312616394,2.522703,3964.1,3963.0,0.1559]
[1761312616595,2.06208,3963.9,3963.0,0.1559]
[1761312616909,0.50688,3963.7,3963.0,0.1559]
[1761312617229,0.50688,3963.4,3962.4,3.74876385]
[1761312617526,3.71688,3963.4,3962.7,0.1559]
[1761312617932,0.577796,3963.7,3962.8,0.02523468]
[1761312618135,3.21,3963.3,3963.0,2.5233247]
[1761312618338,0.50688,3963.2,3962.7,0.1559]
[1761312618958,0.50688,3963.2,3962.8,2.52345949]
[1761312619137,0.50688,3963.2,3962.7,0.1559]